[Event "Titled Tuesday Blitz August 1 Late 2023"]
[White "Wieczorek, Oskar"]
[Black "Pesotskiy, Mikhail"]
[WhiteFideId "1133950"]
[BlackFideId "34164453"]
[WhiteElo "2655"]
[BlackElo "2377"]
[Result "1/2-1/2"]
[Round "1"]
[TimeControl "180+1"]
[Date "2023.08.01"]
[WhiteClock "0:00:05"]
[BlackClock "0:00:09"]
[Board "92"]

1. e4 {[%clk 0:03:00]}  e6 {[%clk 0:02:56]} 2. d4 {[%clk 0:03:01]}  d5 {[%clk 0:02:55]} 3. Nd2 {[%clk 0:03:01]}  Be7 {[%clk 0:02:55]} 4. c3 {[%clk 0:03:01]}  c5 {[%clk 0:02:53]} 5. Ngf3 {[%clk 0:03:00]}  Nf6 {[%clk 0:02:51]} 6. Bb5+ {[%clk 0:02:59]}  Nc6 {[%clk 0:02:50]} 7. exd5 {[%clk 0:02:55]}  Qxd5 {[%clk 0:02:49]} 8. O-O {[%clk 0:02:46]}  O-O {[%clk 0:02:48]} 9. c4 {[%clk 0:02:30]}  Qh5 {[%clk 0:02:44]} 10. Bxc6 {[%clk 0:02:22]}  bxc6 {[%clk 0:02:43]} 11. Ne5 {[%clk 0:02:23]}  Qxd1 {[%clk 0:02:39]} 12. Rxd1 {[%clk 0:02:23]}  Bb7 {[%clk 0:02:32]} 13. dxc5 {[%clk 0:02:24]}  Rfd8 {[%clk 0:02:17]} 14. Re1 {[%clk 0:02:19]}  Bxc5 {[%clk 0:02:14]} 15. Nb3 {[%clk 0:02:18]}  Bb4 {[%clk 0:02:14]} 16. Rf1 {[%clk 0:02:14]}  Bd6 {[%clk 0:01:56]} 17. Nd3 {[%clk 0:02:04]}  Ba6 {[%clk 0:01:55]} 18. Na5 {[%clk 0:01:55]}  Bxh2+ {[%clk 0:01:49]} 19. Kxh2 {[%clk 0:01:56]}  Rxd3 {[%clk 0:01:49]} 20. Nxc6 {[%clk 0:01:50]}  Bxc4 {[%clk 0:01:43]} 21. Ne5 {[%clk 0:01:47]}  Rd4 {[%clk 0:01:36]} 22. Re1 {[%clk 0:01:43]}  Bd5 {[%clk 0:01:33]} 23. f3 {[%clk 0:01:41]}  Rb8 {[%clk 0:01:16]} 24. b3 {[%clk 0:01:28]}  a5 {[%clk 0:01:05]} 25. Be3 {[%clk 0:01:23]}  Rdb4 {[%clk 0:01:05]} 26. Rec1 {[%clk 0:01:10]}  a4 {[%clk 0:01:02]} 27. Bc5 {[%clk 0:01:10]}  R4b5 {[%clk 0:00:56]} 28. b4 {[%clk 0:01:10]}  a3 {[%clk 0:00:50]} 29. Rc3 {[%clk 0:01:01]}  Ra8 {[%clk 0:00:49]} 30. Kg1 {[%clk 0:00:55]}  Rb7 {[%clk 0:00:22]} 31. Kf2 {[%clk 0:00:55]}  Nd7 {[%clk 0:00:23]} 32. Nxd7 {[%clk 0:00:54]}  Rxd7 {[%clk 0:00:23]} 33. b5 {[%clk 0:00:49]}  Rc7 {[%clk 0:00:17]} 34. b6 {[%clk 0:00:47]}  Rcc8 {[%clk 0:00:16]} 35. Rac1 {[%clk 0:00:41]}  f6 {[%clk 0:00:10]} 36. Rd3 {[%clk 0:00:32]}  Rab8 {[%clk 0:00:09]} 37. Rdc3 {[%clk 0:00:08]}  Bxa2 {[%clk 0:00:02]} 38. Rxa3 {[%clk 0:00:08]}  Bd5 {[%clk 0:00:02]} 39. Rcc3 {[%clk 0:00:08]}  Kf7 {[%clk 0:00:01]} 40. Ke3 {[%clk 0:00:08]}  Kg6 {[%clk 0:00:02]} 41. Kd2 {[%clk 0:00:09]}  Rd8 {[%clk 0:00:02]} 42. Kc1 {[%clk 0:00:08]}  Rdc8 {[%clk 0:00:02]} 43. Kb2 {[%clk 0:00:08]}  Rc6 {[%clk 0:00:02]} 44. Ra7 {[%clk 0:00:09]}  h5 {[%clk 0:00:02]} 45. Kc2 {[%clk 0:00:08]}  Rbxb6 {[%clk 0:00:01]} 46. Bxb6 {[%clk 0:00:07]}  Rxb6 {[%clk 0:00:02]} 47. Rcc7 {[%clk 0:00:08]}  Kf5 {[%clk 0:00:02]} 48. Rxg7 {[%clk 0:00:08]}  Rc6+ {[%clk 0:00:03]} 49. Kd2 {[%clk 0:00:08]}  Rb6 {[%clk 0:00:03]} 50. Raf7 {[%clk 0:00:08]}  Rb2+ {[%clk 0:00:04]} 51. Ke3 {[%clk 0:00:08]}  e5 {[%clk 0:00:04]} 52. Rf8 {[%clk 0:00:08]}  Rb3+ {[%clk 0:00:04]} 53. Kf2 {[%clk 0:00:09]}  Rb2+ {[%clk 0:00:05]} 54. Kg3 {[%clk 0:00:09]}  e4 {[%clk 0:00:05]} 55. fxe4+ {[%clk 0:00:07]}  Bxe4 {[%clk 0:00:06]} 56. Kh3 {[%clk 0:00:08]}  Rb3+ {[%clk 0:00:04]} 57. Kh2 {[%clk 0:00:08]}  h4 {[%clk 0:00:04]} 58. Rgf7 {[%clk 0:00:08]}  Rb6 {[%clk 0:00:04]} 59. Rh8 {[%clk 0:00:09]}  Rb2 {[%clk 0:00:04]} 60. Rg7 {[%clk 0:00:09]}  h3 {[%clk 0:00:02]} 61. Rxh3 {[%clk 0:00:09]}  Rf2 {[%clk 0:00:03]} 62. Rh5+ {[%clk 0:00:09]}  Ke6 {[%clk 0:00:03]} 63. Rh4 {[%clk 0:00:09]}  f5 {[%clk 0:00:03]} 64. Ra7 {[%clk 0:00:08]}  Kf6 {[%clk 0:00:03]} 65. Ra6+ {[%clk 0:00:07]}  Kg5 {[%clk 0:00:04]} 66. Rh8 {[%clk 0:00:05]}  Rxg2+ {[%clk 0:00:04]} 67. Kh3 {[%clk 0:00:06]}  Rb2 {[%clk 0:00:03]} 68. Rg8+ {[%clk 0:00:06]}  Kf4 {[%clk 0:00:04]} 69. Ra1 {[%clk 0:00:05]}  Rf2 {[%clk 0:00:03]} 70. Rg7 {[%clk 0:00:04]}  Bg2+ {[%clk 0:00:02]} 71. Kh4 {[%clk 0:00:04]}  Be4 {[%clk 0:00:02]} 72. Kh5 {[%clk 0:00:03]}  Rh2+ {[%clk 0:00:01]} 73. Kg6 {[%clk 0:00:04]}  Ke3 {[%clk 0:00:02]} 74. Kf6 {[%clk 0:00:05]}  Re2 {[%clk 0:00:02]} 75. Re7 {[%clk 0:00:05]}  f4 {[%clk 0:00:03]} 76. Ra4 {[%clk 0:00:05]}  Kf3 {[%clk 0:00:03]} 77. Ra3+ {[%clk 0:00:05]}  Re3 {[%clk 0:00:03]} 78. Ra1 {[%clk 0:00:03]}  Bd3 {[%clk 0:00:03]} 79. Rf7 {[%clk 0:00:02]}  Be2 {[%clk 0:00:04]} 80. Kg5 {[%clk 0:00:03]}  Re4 {[%clk 0:00:03]} 81. Rh1 {[%clk 0:00:02]}  Ke3 {[%clk 0:00:03]} 82. Rh4 {[%clk 0:00:02]}  f3 {[%clk 0:00:04]} 83. Rxe4+ {[%clk 0:00:02]}  Kxe4 {[%clk 0:00:05]} 84. Kg4 {[%clk 0:00:03]}  Ke3 {[%clk 0:00:05]} 85. Kg3 {[%clk 0:00:03]}  Bd1 {[%clk 0:00:05]} 86. Re7+ {[%clk 0:00:03]}  Kd2 {[%clk 0:00:05]} 87. Kf2 {[%clk 0:00:04]}  Be2 {[%clk 0:00:06]} 88. Rd7+ {[%clk 0:00:05]}  Kc3 {[%clk 0:00:07]} 89. Ke3 {[%clk 0:00:06]}  Kc4 {[%clk 0:00:08]} 90. Rf7 {[%clk 0:00:06]}  Kc5 {[%clk 0:00:09]} 91. Ke4 {[%clk 0:00:06]}  Kd6 {[%clk 0:00:09]} 92. Kd4 {[%clk 0:00:06]}  Ke6 {[%clk 0:00:09]} 93. Rf4 {[%clk 0:00:07]}  Ke7 {[%clk 0:00:10]} 94. Ke5 {[%clk 0:00:07]}  Kd7 {[%clk 0:00:10]} 95. Kd5 {[%clk 0:00:08]}  Ke7 {[%clk 0:00:11]} 96. Rf5 {[%clk 0:00:08]}  Bd1 {[%clk 0:00:11]} 97. Ke5 {[%clk 0:00:08]}  Be2 {[%clk 0:00:11]} 98. Rf4 {[%clk 0:00:08]}  Bd1 {[%clk 0:00:10]} 99. Rd4 {[%clk 0:00:08]}  Be2 {[%clk 0:00:09]} 100. Rf4 {[%clk 0:00:05]} 1/2-1/2


[Site "https://www.chess.com"]

[Event "Titled Tuesday Blitz August 1 Late 2023"]
[White "Timerkhanov, Alexander"]
[Black "Shapiro, Daniel"]
[WhiteFideId "24177938"]
[BlackFideId "2001780"]
[WhiteElo "2641"]
[BlackElo "2369"]
[Result "0-1"]
[Round "1"]
[TimeControl "180+1"]
[Date "2023.08.01"]
[WhiteClock "0:01:18"]
[BlackClock "0:00:14"]
[Board "96"]

1. d4 {[%clk 0:02:59]}  Nf6 {[%clk 0:02:59]} 2. Bg5 {[%clk 0:02:59]}  d5 {[%clk 0:02:57]} 3. Nd2 {[%clk 0:02:59]}  Nbd7 {[%clk 0:02:56]} 4. Ngf3 {[%clk 0:02:59]}  g6 {[%clk 0:02:56]} 5. e3 {[%clk 0:02:58]}  Bg7 {[%clk 0:02:57]} 6. c4 {[%clk 0:02:59]}  c6 {[%clk 0:02:53]} 7. Be2 {[%clk 0:02:58]}  O-O {[%clk 0:02:52]} 8. O-O {[%clk 0:02:58]}  b6 {[%clk 0:02:52]} 9. Rc1 {[%clk 0:02:57]}  Bb7 {[%clk 0:02:52]} 10. cxd5 {[%clk 0:02:57]}  cxd5 {[%clk 0:02:52]} 11. h3 {[%clk 0:02:56]}  a6 {[%clk 0:02:46]} 12. Qb3 {[%clk 0:02:55]}  Rc8 {[%clk 0:02:38]} 13. Bf4 {[%clk 0:02:52]}  e6 {[%clk 0:02:32]} 14. a4 {[%clk 0:02:51]}  Re8 {[%clk 0:02:27]} 15. Ne5 {[%clk 0:02:47]}  Nxe5 {[%clk 0:02:21]} 16. Bxe5 {[%clk 0:02:48]}  Nd7 {[%clk 0:02:18]} 17. Bg3 {[%clk 0:02:48]}  Bf8 {[%clk 0:02:11]} 18. Nf3 {[%clk 0:02:46]}  a5 {[%clk 0:02:04]} 19. Bb5 {[%clk 0:02:45]}  Bb4 {[%clk 0:01:58]} 20. Ne5 {[%clk 0:02:45]}  Nxe5 {[%clk 0:01:43]} 21. Bxe8 {[%clk 0:02:44]}  Nc4 {[%clk 0:01:41]} 22. Bb5 {[%clk 0:02:25]}  Nd2 {[%clk 0:01:41]} 23. Qd3 {[%clk 0:02:23]}  Nxf1 {[%clk 0:01:37]} 24. Qxf1 {[%clk 0:02:24]}  Rxc1 {[%clk 0:01:32]} 25. Qxc1 {[%clk 0:02:25]}  Qc8 {[%clk 0:01:32]} 26. Qxc8+ {[%clk 0:02:25]}  Bxc8 {[%clk 0:01:26]} 27. Bc7 {[%clk 0:02:26]}  Kf8 {[%clk 0:01:20]} 28. Bxb6 {[%clk 0:02:26]}  Ke7 {[%clk 0:01:09]} 29. Kf1 {[%clk 0:02:24]}  f6 {[%clk 0:01:08]} 30. Ke2 {[%clk 0:02:23]}  Kd6 {[%clk 0:01:07]} 31. Kd3 {[%clk 0:02:23]}  e5 {[%clk 0:01:08]} 32. f3 {[%clk 0:02:21]}  Bf5+ {[%clk 0:00:57]} 33. e4 {[%clk 0:02:20]}  Be6 {[%clk 0:00:57]} 34. dxe5+ {[%clk 0:02:16]}  fxe5 {[%clk 0:00:56]} 35. exd5 {[%clk 0:02:16]}  Bxd5 {[%clk 0:00:56]} 36. Bc4 {[%clk 0:02:16]}  Bc6 {[%clk 0:00:56]} 37. b3 {[%clk 0:02:15]}  Be1 {[%clk 0:00:54]} 38. Be3 {[%clk 0:02:15]}  Bb4 {[%clk 0:00:50]} 39. Ba7 {[%clk 0:02:15]}  Be1 {[%clk 0:00:48]} 40. Bb8+ {[%clk 0:02:15]}  Kc5 {[%clk 0:00:46]} 41. Bxe5 {[%clk 0:02:15]}  Bd7 {[%clk 0:00:36]} 42. Bd4+ {[%clk 0:02:13]}  Kb4 {[%clk 0:00:36]} 43. Bb6 {[%clk 0:02:13]}  Bf5+ {[%clk 0:00:35]} 44. Ke2 {[%clk 0:02:11]}  Bc3 {[%clk 0:00:35]} 45. g4 {[%clk 0:02:09]}  Bc2 {[%clk 0:00:35]} 46. Bg8 {[%clk 0:02:04]}  h6 {[%clk 0:00:32]} 47. Be3 {[%clk 0:02:02]}  h5 {[%clk 0:00:28]} 48. gxh5 {[%clk 0:01:51]}  gxh5 {[%clk 0:00:29]} 49. Bd2 {[%clk 0:01:52]}  Bxb3 {[%clk 0:00:27]} 50. Bxc3+ {[%clk 0:01:51]}  Kxc3 {[%clk 0:00:28]} 51. Bxb3 {[%clk 0:01:52]}  Kxb3 {[%clk 0:00:28]} 52. Kd3 {[%clk 0:01:52]}  Kxa4 {[%clk 0:00:29]} 53. f4 {[%clk 0:01:53]}  Kb5 {[%clk 0:00:28]} 54. Kd4 {[%clk 0:01:40]}  a4 {[%clk 0:00:28]} 55. f5 {[%clk 0:01:39]}  Kc6 {[%clk 0:00:24]} 56. Ke5 {[%clk 0:01:26]}  a3 {[%clk 0:00:20]} 57. f6 {[%clk 0:01:17]}  a2 {[%clk 0:00:20]} 58. f7 {[%clk 0:01:17]}  a1=Q+ {[%clk 0:00:20]} 59. Ke6 {[%clk 0:01:18]}  Qe1+ {[%clk 0:00:18]} 60. Kf6 {[%clk 0:01:17]}  Qf2+ {[%clk 0:00:18]} 61. Kg7 {[%clk 0:01:18]}  Qg3+ {[%clk 0:00:17]} 62. Kh7 {[%clk 0:01:18]}  Qf4 {[%clk 0:00:16]} 63. Kg8 {[%clk 0:01:18]}  Qg5+ {[%clk 0:00:16]} 64. Kh8 {[%clk 0:01:15]}  Qf6+ {[%clk 0:00:15]} 65. Kg8 {[%clk 0:01:15]}  Qg6+ {[%clk 0:00:15]} 66. Kf8 {[%clk 0:01:16]}  Kd7 {[%clk 0:00:13]} 67. h4 {[%clk 0:01:16]}  Ke6 {[%clk 0:00:13]} 68. Ke8 {[%clk 0:01:17]}  Qxf7+ {[%clk 0:00:13]} 69. Kd8 {[%clk 0:01:18]}  Qd7# {[%clk 0:00:14]} 0-1


[Site "https://www.chess.com"]

[Event "Titled Tuesday Blitz August 1 Late 2023"]
[White "Fishbein, Alexander"]
[Black "Ferro, Mario"]
[WhiteFideId "2000377"]
[BlackFideId "810290"]
[WhiteElo "2637"]
[BlackElo "2367"]
[Result "1-0"]
[Round "1"]
[TimeControl "180+1"]
[Date "2023.08.01"]
[WhiteClock "0:02:18"]
[BlackClock "0:01:52"]
[Board "98"]

1. e4 {[%clk 0:02:56]}  c5 {[%clk 0:02:57]} 2. Nf3 {[%clk 0:02:55]}  d6 {[%clk 0:02:56]} 3. d4 {[%clk 0:02:54]}  cxd4 {[%clk 0:02:56]} 4. Nxd4 {[%clk 0:02:55]}  Nf6 {[%clk 0:02:56]} 5. Nc3 {[%clk 0:02:55]}  a6 {[%clk 0:02:56]} 6. Bd3 {[%clk 0:02:53]}  e5 {[%clk 0:02:55]} 7. Nf3 {[%clk 0:02:52]}  Be7 {[%clk 0:02:53]} 8. O-O {[%clk 0:02:51]}  b5 {[%clk 0:02:53]} 9. Bg5 {[%clk 0:02:48]}  Nbd7 {[%clk 0:02:51]} 10. a3 {[%clk 0:02:40]}  O-O {[%clk 0:02:49]} 11. Re1 {[%clk 0:02:41]}  Bb7 {[%clk 0:02:48]} 12. Nd2 {[%clk 0:02:39]}  h6 {[%clk 0:02:48]} 13. Bxf6 {[%clk 0:02:39]}  Nxf6 {[%clk 0:02:48]} 14. Nf1 {[%clk 0:02:39]}  d5 {[%clk 0:02:40]} 15. exd5 {[%clk 0:02:36]}  Nxd5 {[%clk 0:02:41]} 16. Nxd5 {[%clk 0:02:31]}  Qxd5 {[%clk 0:02:42]} 17. Ne3 {[%clk 0:02:31]}  Qc6 {[%clk 0:02:34]} 18. Qg4 {[%clk 0:02:30]}  Bc5 {[%clk 0:02:21]} 19. Nf5 {[%clk 0:02:23]}  Qg6 {[%clk 0:01:52]} 20. Ne7+ {[%clk 0:02:18]} 1-0


[Site "https://www.chess.com"]

[Event "Titled Tuesday Blitz August 1 Late 2023"]
[White "Ovchinnikov, Vsevolod"]
[Black "Mushini Ajay"]
[WhiteFideId "24176842"]
[BlackFideId "35066188"]
[WhiteElo "2632"]
[BlackElo "2367"]
[Result "1-0"]
[Round "1"]
[TimeControl "180+1"]
[Date "2023.08.01"]
[WhiteClock "0:00:15"]
[BlackClock "0:00:22"]
[Board "100"]

1. d4 {[%clk 0:03:00]}  Nf6 {[%clk 0:02:57]} 2. c4 {[%clk 0:03:01]}  e6 {[%clk 0:02:57]} 3. g3 {[%clk 0:03:01]}  d5 {[%clk 0:02:57]} 4. Bg2 {[%clk 0:03:02]}  dxc4 {[%clk 0:02:56]} 5. Nf3 {[%clk 0:03:02]}  Nc6 {[%clk 0:02:55]} 6. Qa4 {[%clk 0:03:01]}  Bb4+ {[%clk 0:02:48]} 7. Bd2 {[%clk 0:03:01]}  a5 {[%clk 0:02:47]} 8. a3 {[%clk 0:02:47]}  Bxd2+ {[%clk 0:02:43]} 9. Nbxd2 {[%clk 0:02:48]}  O-O {[%clk 0:02:41]} 10. Qxc4 {[%clk 0:02:46]}  Qe7 {[%clk 0:02:38]} 11. Rc1 {[%clk 0:01:54]}  Bd7 {[%clk 0:02:28]} 12. O-O {[%clk 0:01:52]}  Rab8 {[%clk 0:02:24]} 13. e3 {[%clk 0:01:44]}  b5 {[%clk 0:02:20]} 14. Qc5 {[%clk 0:01:44]}  Qxc5 {[%clk 0:02:19]} 15. Rxc5 {[%clk 0:01:45]}  a4 {[%clk 0:02:11]} 16. Rfc1 {[%clk 0:01:42]}  Rb6 {[%clk 0:02:07]} 17. Ne1 {[%clk 0:01:38]}  Na5 {[%clk 0:01:49]} 18. Rxc7 {[%clk 0:01:36]}  b4 {[%clk 0:01:48]} 19. axb4 {[%clk 0:01:21]}  Rxb4 {[%clk 0:01:49]} 20. Nd3 {[%clk 0:01:22]}  Rbb8 {[%clk 0:01:37]} 21. R7c5 {[%clk 0:00:44]}  Nb3 {[%clk 0:01:16]} 22. Nxb3 {[%clk 0:00:44]}  Rxb3 {[%clk 0:01:16]} 23. R5c3 {[%clk 0:00:45]}  Rfb8 {[%clk 0:01:11]} 24. Rxb3 {[%clk 0:00:20]}  Rxb3 {[%clk 0:01:12]} 25. Bf1 {[%clk 0:00:21]}  a3 {[%clk 0:00:57]} 26. bxa3 {[%clk 0:00:20]}  Rxa3 {[%clk 0:00:58]} 27. Ne5 {[%clk 0:00:19]}  Be8 {[%clk 0:00:53]} 28. Rc8 {[%clk 0:00:18]}  Rb3 {[%clk 0:00:45]} 29. Be2 {[%clk 0:00:15]}  Kf8 {[%clk 0:00:44]} 30. Bf3 {[%clk 0:00:14]}  Ke7 {[%clk 0:00:42]} 31. Kg2 {[%clk 0:00:14]}  g5 {[%clk 0:00:38]} 32. g4 {[%clk 0:00:14]}  Rb2 {[%clk 0:00:36]} 33. h3 {[%clk 0:00:14]}  Bd7 {[%clk 0:00:31]} 34. Rc7 {[%clk 0:00:14]}  Kd6 {[%clk 0:00:31]} 35. Ra7 {[%clk 0:00:13]}  Be8 {[%clk 0:00:29]} 36. Nxf7+ {[%clk 0:00:13]}  Bxf7 {[%clk 0:00:29]} 37. Rxf7 {[%clk 0:00:14]}  Nd5 {[%clk 0:00:28]} 38. Bxd5 {[%clk 0:00:14]}  Kxd5 {[%clk 0:00:28]} 39. Rxh7 {[%clk 0:00:14]}  e5 {[%clk 0:00:28]} 40. dxe5 {[%clk 0:00:14]}  Kxe5 {[%clk 0:00:29]} 41. Rf7 {[%clk 0:00:14]}  Ke6 {[%clk 0:00:28]} 42. Rf5 {[%clk 0:00:15]}  Rb5 {[%clk 0:00:22]} 43. Rxb5 {[%clk 0:00:15]} 1-0


[Site "https://www.chess.com"]

[Event "Titled Tuesday Blitz August 1 Late 2023"]
[White "Aldokhin, Ivan"]
[Black "Rego, Pedro Filipe"]
[WhiteFideId "24115720"]
[BlackFideId "1904310"]
[WhiteElo "2619"]
[BlackElo "2365"]
[Result "1-0"]
[Round "1"]
[TimeControl "180+1"]
[Date "2023.08.01"]
[WhiteClock "0:00:52"]
[BlackClock "0:00:30"]
[Board "102"]

1. e4 {[%clk 0:02:53]}  c5 {[%clk 0:02:54]} 2. Nf3 {[%clk 0:02:53]}  d6 {[%clk 0:02:54]} 3. d4 {[%clk 0:02:54]}  cxd4 {[%clk 0:02:55]} 4. Nxd4 {[%clk 0:02:54]}  Nf6 {[%clk 0:02:56]} 5. Nc3 {[%clk 0:02:55]}  Nc6 {[%clk 0:02:56]} 6. Bc4 {[%clk 0:02:55]}  Qb6 {[%clk 0:02:55]} 7. Nb3 {[%clk 0:02:55]}  e6 {[%clk 0:02:55]} 8. Be3 {[%clk 0:02:55]}  Qc7 {[%clk 0:02:52]} 9. O-O {[%clk 0:02:55]}  a6 {[%clk 0:02:53]} 10. f4 {[%clk 0:02:53]}  Be7 {[%clk 0:02:50]} 11. Qf3 {[%clk 0:02:48]}  b5 {[%clk 0:02:45]} 12. Bd3 {[%clk 0:02:45]}  Bb7 {[%clk 0:02:45]} 13. g4 {[%clk 0:02:36]}  h5 {[%clk 0:02:43]} 14. g5 {[%clk 0:02:28]}  Ng4 {[%clk 0:02:43]} 15. Bd2 {[%clk 0:02:26]}  Qb6+ {[%clk 0:02:19]} 16. Kg2 {[%clk 0:02:21]}  f5 {[%clk 0:02:17]} 17. h3 {[%clk 0:02:08]}  O-O-O {[%clk 0:02:10]} 18. a4 {[%clk 0:02:02]}  b4 {[%clk 0:02:06]} 19. a5 {[%clk 0:02:02]}  Qc7 {[%clk 0:01:44]} 20. Na4 {[%clk 0:02:03]}  d5 {[%clk 0:01:31]} 21. exf5 {[%clk 0:01:54]}  d4 {[%clk 0:01:24]} 22. Nbc5 {[%clk 0:01:39]}  Bxc5 {[%clk 0:01:05]} 23. Nxc5 {[%clk 0:01:38]}  Ne3+ {[%clk 0:01:00]} 24. Bxe3 {[%clk 0:01:36]}  dxe3 {[%clk 0:01:01]} 25. fxe6 {[%clk 0:01:15]}  b3 {[%clk 0:00:47]} 26. Nxb7 {[%clk 0:01:10]}  Kxb7 {[%clk 0:00:45]} 27. Be4 {[%clk 0:01:02]}  Rd2+ {[%clk 0:00:45]} 28. Kh1 {[%clk 0:00:59]}  bxc2 {[%clk 0:00:41]} 29. Qxe3 {[%clk 0:00:54]}  Rhd8 {[%clk 0:00:30]} 30. e7 {[%clk 0:00:52]} 1-0


[Site "https://www.chess.com"]

[Event "Titled Tuesday Blitz August 1 Late 2023"]
[White "Piesik, Piotr"]
[Black "Vifleemskaia, Svetlana"]
[WhiteFideId "1136194"]
[BlackFideId "4129490"]
[WhiteElo "2612"]
[BlackElo "2359"]
[Result "1-0"]
[Round "1"]
[TimeControl "180+1"]
[Date "2023.08.01"]
[WhiteClock "0:02:08"]
[BlackClock "0:01:10"]
[Board "106"]

1. Nf3 {[%clk 0:03:00]}  Nf6 {[%clk 0:02:58]} 2. g3 {[%clk 0:03:01]}  b5 {[%clk 0:02:57]} 3. Bg2 {[%clk 0:03:01]}  Bb7 {[%clk 0:02:58]} 4. O-O {[%clk 0:03:02]}  e6 {[%clk 0:02:57]} 5. d3 {[%clk 0:03:01]}  d6 {[%clk 0:02:55]} 6. e4 {[%clk 0:02:59]}  Be7 {[%clk 0:02:55]} 7. a4 {[%clk 0:02:58]}  b4 {[%clk 0:02:55]} 8. Nbd2 {[%clk 0:02:58]}  a5 {[%clk 0:02:54]} 9. Nc4 {[%clk 0:02:52]}  Nbd7 {[%clk 0:02:53]} 10. b3 {[%clk 0:02:52]}  Nb6 {[%clk 0:02:52]} 11. Ne3 {[%clk 0:02:49]}  O-O {[%clk 0:02:51]} 12. Bb2 {[%clk 0:02:49]}  c5 {[%clk 0:02:37]} 13. e5 {[%clk 0:02:48]}  dxe5 {[%clk 0:02:34]} 14. Nxe5 {[%clk 0:02:49]}  Bxg2 {[%clk 0:02:33]} 15. Kxg2 {[%clk 0:02:50]}  Nfd5 {[%clk 0:02:27]} 16. Qf3 {[%clk 0:02:49]}  Bf6 {[%clk 0:02:12]} 17. Nc6 {[%clk 0:02:43]}  Qd6 {[%clk 0:02:02]} 18. Bxf6 {[%clk 0:02:40]}  Nxf6 {[%clk 0:01:59]} 19. d4 {[%clk 0:02:15]}  Rfc8 {[%clk 0:01:48]} 20. Ne5 {[%clk 0:02:09]}  cxd4 {[%clk 0:01:42]} 21. N3c4 {[%clk 0:02:09]}  Nxc4 {[%clk 0:01:41]} 22. Nxc4 {[%clk 0:02:09]}  Rd8 {[%clk 0:01:10]} 23. Nxd6 {[%clk 0:02:08]} 1-0


[Site "https://www.chess.com"]

[Event "Titled Tuesday Blitz August 1 Late 2023"]
[White "Peatman, Carter"]
[Black "musclemonster12"]
[WhiteFideId "2096480"]
[WhiteElo "2357"]
[BlackElo "2611"]
[Result "0-1"]
[Round "1"]
[TimeControl "180+1"]
[Date "2023.08.01"]
[WhiteClock "0:00:02"]
[BlackClock "0:00:52"]
[Board "107"]

1. d4 {[%clk 0:03:00]}  Nf6 {[%clk 0:02:58]} 2. Bf4 {[%clk 0:03:00]}  e6 {[%clk 0:02:58]} 3. e3 {[%clk 0:03:00]}  c5 {[%clk 0:02:58]} 4. Nd2 {[%clk 0:03:00]}  b6 {[%clk 0:02:57]} 5. c3 {[%clk 0:02:58]}  Bb7 {[%clk 0:02:55]} 6. Ngf3 {[%clk 0:02:57]}  Nc6 {[%clk 0:02:55]} 7. Bd3 {[%clk 0:02:57]}  Be7 {[%clk 0:02:55]} 8. e4 {[%clk 0:02:53]}  O-O {[%clk 0:02:53]} 9. O-O {[%clk 0:02:51]}  d6 {[%clk 0:02:52]} 10. Qe2 {[%clk 0:02:37]}  cxd4 {[%clk 0:02:50]} 11. cxd4 {[%clk 0:02:33]}  Nb4 {[%clk 0:02:50]} 12. Rfe1 {[%clk 0:02:23]}  Rc8 {[%clk 0:02:46]} 13. a3 {[%clk 0:02:19]}  Nc2 {[%clk 0:02:43]} 14. Bxc2 {[%clk 0:02:15]}  Rxc2 {[%clk 0:02:44]} 15. Qd3 {[%clk 0:02:01]}  Qc8 {[%clk 0:02:20]} 16. Qb3 {[%clk 0:01:28]}  Qc6 {[%clk 0:02:04]} 17. Rad1 {[%clk 0:00:57]}  Rc8 {[%clk 0:01:57]} 18. Bg5 {[%clk 0:00:55]}  h6 {[%clk 0:01:55]} 19. Bh4 {[%clk 0:00:53]}  Qd7 {[%clk 0:01:45]} 20. Bxf6 {[%clk 0:00:43]}  Bxf6 {[%clk 0:01:43]} 21. Nb1 {[%clk 0:00:44]}  R2c4 {[%clk 0:01:30]} 22. e5 {[%clk 0:00:37]}  Be7 {[%clk 0:01:24]} 23. Nbd2 {[%clk 0:00:35]}  Rc2 {[%clk 0:01:19]} 24. Ne4 {[%clk 0:00:27]}  dxe5 {[%clk 0:01:14]} 25. dxe5 {[%clk 0:00:15]}  Bd5 {[%clk 0:01:14]} 26. Nc3 {[%clk 0:00:05]}  Bxb3 {[%clk 0:01:03]} 27. Rxd7 {[%clk 0:00:05]}  Bc5 {[%clk 0:01:03]} 28. Rd2 {[%clk 0:00:01]}  Bxa3 {[%clk 0:00:56]} 29. Rxc2 {[%clk 0:00:02]}  Bxc2 {[%clk 0:00:56]} 30. bxa3 {[%clk 0:00:02]}  Rxc3 {[%clk 0:00:56]} 31. Rc1 {[%clk 0:00:02]}  Rc4 {[%clk 0:00:53]} 32. Ne1 {[%clk 0:00:02]}  Bb3 {[%clk 0:00:53]} 33. Rxc4 {[%clk 0:00:03]}  Bxc4 {[%clk 0:00:53]} 34. f4 {[%clk 0:00:04]}  Kf8 {[%clk 0:00:52]} 35. Kf2 {[%clk 0:00:04]}  Ke7 {[%clk 0:00:52]} 36. Ke3 {[%clk 0:00:05]}  Kd7 {[%clk 0:00:52]} 37. Kd4 {[%clk 0:00:06]}  Bd5 {[%clk 0:00:53]} 38. Nd3 {[%clk 0:00:05]}  Bxg2 {[%clk 0:00:52]} 39. Nb4 {[%clk 0:00:05]}  Bb7 {[%clk 0:00:52]} 40. Nd3 {[%clk 0:00:04]}  a5 {[%clk 0:00:52]} 41. Kc4 {[%clk 0:00:04]}  Ba6+ {[%clk 0:00:51]} 42. Kc3 {[%clk 0:00:04]}  Bxd3 {[%clk 0:00:52]} 43. Kxd3 {[%clk 0:00:05]}  Kc6 {[%clk 0:00:52]} 44. Kc3 {[%clk 0:00:06]}  b5 {[%clk 0:00:52]} 45. Kb3 {[%clk 0:00:02]}  Kc5 {[%clk 0:00:52]} 0-1


[Site "https://www.chess.com"]